[Event "Titled Tuesday Blitz November 9 2021"]
[White "Paravyan, David"]
[Black "Holt, Conrad"]
[WhiteFideId "4194985"]
[BlackFideId "2034387"]
[WhiteElo "2639"]
[BlackElo "2586"]
[Result "0-1"]
[Round "05"]
[TimeControl "180+1"]
[Date "2021.11.09"]
[WhiteClock "0:00:03"]
[BlackClock "0:00:34"]

1. e4 {[%clk 0:03:00]}  e6 {[%clk 0:02:33]} 2. d4 {[%clk 0:02:58]}  d5 {[%clk 0:02:33]} 3. Nc3 {[%clk 0:02:58]}  Nf6 {[%clk 0:02:33]} 4. Bg5 {[%clk 0:02:57]}  dxe4 {[%clk 0:02:33]} 5. Nxe4 {[%clk 0:02:57]}  Be7 {[%clk 0:02:33]} 6. Bxf6 {[%clk 0:02:54]}  Bxf6 {[%clk 0:02:34]} 7. Nf3 {[%clk 0:02:54]}  Nd7 {[%clk 0:02:34]} 8. Qd2 {[%clk 0:02:54]}  O-O {[%clk 0:02:34]} 9. O-O-O {[%clk 0:02:55]}  Be7 {[%clk 0:02:35]} 10. h4 {[%clk 0:02:52]}  b6 {[%clk 0:02:35]} 11. Qf4 {[%clk 0:02:52]}  Bb7 {[%clk 0:02:34]} 12. Kb1 {[%clk 0:02:53]}  c5 {[%clk 0:02:13]} 13. dxc5 {[%clk 0:02:48]}  Bxe4 {[%clk 0:02:12]} 14. Qxe4 {[%clk 0:02:46]}  Nxc5 {[%clk 0:02:12]} 15. Qe1 {[%clk 0:02:27]}  Qc7 {[%clk 0:02:11]} 16. Bd3 {[%clk 0:02:21]}  Rad8 {[%clk 0:01:52]} 17. Qe2 {[%clk 0:02:21]}  Bf6 {[%clk 0:01:47]} 18. Ng5 {[%clk 0:02:07]}  g6 {[%clk 0:01:44]} 19. Nf3 {[%clk 0:01:28]}  Na4 {[%clk 0:01:37]} 20. c3 {[%clk 0:01:25]}  Nxc3+ {[%clk 0:01:36]} 21. bxc3 {[%clk 0:01:20]}  Qxc3 {[%clk 0:01:37]} 22. Rc1 {[%clk 0:00:48]}  Qxd3+ {[%clk 0:01:32]} 23. Qxd3 {[%clk 0:00:45]}  Rxd3 {[%clk 0:01:33]} 24. Rc7 {[%clk 0:00:44]}  a5 {[%clk 0:01:25]} 25. Rhc1 {[%clk 0:00:40]}  Rd5 {[%clk 0:01:21]} 26. a4 {[%clk 0:00:35]}  b5 {[%clk 0:01:19]} 27. R7c5 {[%clk 0:00:29]}  Rxc5 {[%clk 0:01:18]} 28. Rxc5 {[%clk 0:00:30]}  bxa4 {[%clk 0:01:19]} 29. Ka2 {[%clk 0:00:12]}  Rb8 {[%clk 0:01:17]} 30. Rc2 {[%clk 0:00:11]}  Rb4 {[%clk 0:01:11]} 31. g3 {[%clk 0:00:11]}  Rb3 {[%clk 0:01:10]} 32. Ne1 {[%clk 0:00:05]}  Kg7 {[%clk 0:01:08]} 33. Re2 {[%clk 0:00:05]}  h5 {[%clk 0:01:05]} 34. Ng2 {[%clk 0:00:05]}  Rb4 {[%clk 0:00:58]} 35. Ka3 {[%clk 0:00:05]}  Be7 {[%clk 0:00:56]} 36. Ka2 {[%clk 0:00:05]}  Bd6 {[%clk 0:00:54]} 37. Ne3 {[%clk 0:00:05]}  Bc5 {[%clk 0:00:52]} 38. Nd1 {[%clk 0:00:04]}  Rc4 {[%clk 0:00:48]} 39. Nb2 {[%clk 0:00:03]}  Rd4 {[%clk 0:00:48]} 40. Rc2 {[%clk 0:00:03]}  Bd6 {[%clk 0:00:46]} 41. Nc4 {[%clk 0:00:03]}  Bb4 {[%clk 0:00:46]} 42. Kb2 {[%clk 0:00:02]}  Kf6 {[%clk 0:00:45]} 43. Ka2 {[%clk 0:00:03]}  e5 {[%clk 0:00:44]} 44. Kb1 {[%clk 0:00:03]}  Ke6 {[%clk 0:00:44]} 45. Ne3 {[%clk 0:00:03]}  f5 {[%clk 0:00:41]} 46. Rc6+ {[%clk 0:00:02]}  Rd6 {[%clk 0:00:41]} 47. Rc8 {[%clk 0:00:02]}  f4 {[%clk 0:00:41]} 48. gxf4 {[%clk 0:00:02]}  exf4 {[%clk 0:00:41]} 49. Nc4 {[%clk 0:00:03]}  Rd4 {[%clk 0:00:41]} 50. Kc2 {[%clk 0:00:03]}  Kf5 {[%clk 0:00:39]} 51. Nb6 {[%clk 0:00:01]}  Rd2+ {[%clk 0:00:36]} 52. Kc1 {[%clk 0:00:01]}  Rxf2 {[%clk 0:00:36]} 53. Nxa4 {[%clk 0:00:02]}  f3 {[%clk 0:00:36]} 54. Nb6 {[%clk 0:00:02]}  Re2 {[%clk 0:00:34]} 55. Nc4 {[%clk 0:00:03]}  f2 {[%clk 0:00:34]} 0-1


[Site "https://www.chess.com"]

[Event "Titled Tuesday Blitz November 9 2021"]
[White "Rozman, Levy"]
[Black "Pranav, V"]
[WhiteFideId "2039877"]
[BlackFideId "25060783"]
[WhiteElo "2376"]
[BlackElo "2351"]
[Result "1-0"]
[Round "05"]
[TimeControl "180+1"]
[Date "2021.11.09"]
[WhiteClock "0:00:10"]
[BlackClock "0:00:01"]

1. d4 {[%clk 0:03:00]}  Nf6 {[%clk 0:02:58]} 2. c4 {[%clk 0:03:00]}  e6 {[%clk 0:02:56]} 3. Nc3 {[%clk 0:03:00]}  Bb4 {[%clk 0:02:55]} 4. a3 {[%clk 0:03:01]}  Bxc3+ {[%clk 0:02:55]} 5. bxc3 {[%clk 0:03:02]}  O-O {[%clk 0:02:55]} 6. f3 {[%clk 0:03:02]}  c5 {[%clk 0:02:55]} 7. e4 {[%clk 0:03:01]}  d6 {[%clk 0:02:56]} 8. Bd3 {[%clk 0:02:57]}  Nc6 {[%clk 0:02:55]} 9. Be3 {[%clk 0:02:57]}  b6 {[%clk 0:02:54]} 10. Ne2 {[%clk 0:02:54]}  Ba6 {[%clk 0:02:52]} 11. Ng3 {[%clk 0:02:51]}  Na5 {[%clk 0:02:51]} 12. Qe2 {[%clk 0:02:49]}  Rc8 {[%clk 0:02:42]} 13. d5 {[%clk 0:02:36]}  Nd7 {[%clk 0:02:39]} 14. f4 {[%clk 0:02:26]}  exd5 {[%clk 0:02:27]} 15. cxd5 {[%clk 0:02:10]}  Bxd3 {[%clk 0:02:18]} 16. Qxd3 {[%clk 0:02:11]}  Nb3 {[%clk 0:02:17]} 17. Rd1 {[%clk 0:01:54]}  c4 {[%clk 0:02:17]} 18. Qc2 {[%clk 0:01:50]}  Nbc5 {[%clk 0:02:09]} 19. O-O {[%clk 0:01:47]}  Nd3 {[%clk 0:02:08]} 20. Bd4 {[%clk 0:01:41]}  g6 {[%clk 0:02:01]} 21. Qe2 {[%clk 0:01:33]}  Qh4 {[%clk 0:01:54]} 22. Qf3 {[%clk 0:01:27]}  Rce8 {[%clk 0:01:48]} 23. Rd2 {[%clk 0:01:13]}  f5 {[%clk 0:01:44]} 24. Re2 {[%clk 0:01:07]}  fxe4 {[%clk 0:00:54]} 25. Rxe4 {[%clk 0:01:08]}  Nf6 {[%clk 0:00:49]} 26. Re6 {[%clk 0:00:52]}  Ng4 {[%clk 0:00:37]} 27. h3 {[%clk 0:00:52]}  Nh6 {[%clk 0:00:25]} 28. Bf6 {[%clk 0:00:32]}  Qxf6 {[%clk 0:00:25]} 29. Rxf6 {[%clk 0:00:32]}  Rxf6 {[%clk 0:00:26]} 30. Ne4 {[%clk 0:00:27]}  Rff8 {[%clk 0:00:10]} 31. Nxd6 {[%clk 0:00:25]}  Rd8 {[%clk 0:00:10]} 32. Nxc4 {[%clk 0:00:24]}  Nxf4 {[%clk 0:00:11]} 33. d6 {[%clk 0:00:20]}  g5 {[%clk 0:00:05]} 34. Kh2 {[%clk 0:00:14]}  Nf5 {[%clk 0:00:03]} 35. Qg4 {[%clk 0:00:10]}  Ng6 {[%clk 0:00:01]} 36. Rxf5 {[%clk 0:00:10]} 1-0


[Site "https://www.chess.com"]

[Event "Titled Tuesday Blitz November 9 2021"]
[White "Rustemov, Alexander"]
[Black "Korchmar, Vasiliy"]
[WhiteFideId "4119002"]
[BlackFideId "24131750"]
[WhiteElo "2787"]
[BlackElo "2370"]
[Result "1/2-1/2"]
[Round "05"]
[TimeControl "180+1"]
[Date "2021.11.09"]
[WhiteClock "0:00:24"]
[BlackClock "0:00:03"]

1. d4 {[%clk 0:03:00]}  Nf6 {[%clk 0:02:59]} 2. c4 {[%clk 0:03:00]}  c6 {[%clk 0:02:59]} 3. Nc3 {[%clk 0:02:57]}  d5 {[%clk 0:02:59]} 4. e3 {[%clk 0:02:58]}  e6 {[%clk 0:02:58]} 5. Nf3 {[%clk 0:02:58]}  a6 {[%clk 0:02:59]} 6. Qc2 {[%clk 0:02:58]}  c5 {[%clk 0:02:57]} 7. cxd5 {[%clk 0:02:53]}  exd5 {[%clk 0:02:58]} 8. Be2 {[%clk 0:02:52]}  Nc6 {[%clk 0:02:57]} 9. O-O {[%clk 0:02:52]}  cxd4 {[%clk 0:02:52]} 10. Nxd4 {[%clk 0:02:51]}  Nxd4 {[%clk 0:02:51]} 11. exd4 {[%clk 0:02:51]}  Be7 {[%clk 0:02:41]} 12. Bf4 {[%clk 0:02:49]}  O-O {[%clk 0:02:39]} 13. Rfe1 {[%clk 0:02:48]}  Be6 {[%clk 0:02:34]} 14. Bd3 {[%clk 0:02:35]}  Rc8 {[%clk 0:02:31]} 15. Qb3 {[%clk 0:02:26]}  b5 {[%clk 0:02:29]} 16. Rac1 {[%clk 0:02:17]}  Ne4 {[%clk 0:02:26]} 17. Bxe4 {[%clk 0:02:12]}  dxe4 {[%clk 0:02:25]} 18. d5 {[%clk 0:02:12]}  Bf5 {[%clk 0:02:17]} 19. Nxe4 {[%clk 0:02:06]}  Rxc1 {[%clk 0:02:17]} 20. Bxc1 {[%clk 0:02:06]}  Qd7 {[%clk 0:01:47]} 21. f3 {[%clk 0:02:03]}  Rd8 {[%clk 0:01:45]} 22. Rd1 {[%clk 0:02:02]}  b4 {[%clk 0:00:42]} 23. Qc4 {[%clk 0:01:23]}  a5 {[%clk 0:00:24]} 24. Qa6 {[%clk 0:01:13]}  Qa4 {[%clk 0:00:12]} 25. Qe2 {[%clk 0:01:00]}  Qxa2 {[%clk 0:00:11]} 26. d6 {[%clk 0:00:57]}  Bf8 {[%clk 0:00:11]} 27. Bf4 {[%clk 0:00:45]}  a4 {[%clk 0:00:09]} 28. Rd2 {[%clk 0:00:37]}  Qe6 {[%clk 0:00:06]} 29. g4 {[%clk 0:00:36]}  Bg6 {[%clk 0:00:04]} 30. Kg2 {[%clk 0:00:34]}  a3 {[%clk 0:00:04]} 31. bxa3 {[%clk 0:00:34]}  bxa3 {[%clk 0:00:05]} 32. Kg3 {[%clk 0:00:30]}  h5 {[%clk 0:00:04]} 33. h3 {[%clk 0:00:30]}  hxg4 {[%clk 0:00:04]} 34. hxg4 {[%clk 0:00:31]}  a2 {[%clk 0:00:02]} 35. Rxa2 {[%clk 0:00:31]}  Bxe4 {[%clk 0:00:02]} 36. fxe4 {[%clk 0:00:29]}  Bxd6 {[%clk 0:00:02]} 37. e5 {[%clk 0:00:27]}  Be7 {[%clk 0:00:02]} 38. Rd2 {[%clk 0:00:24]}  Qb3+ {[%clk 0:00:02]} 39. Qe3 {[%clk 0:00:22]}  Qxe3+ {[%clk 0:00:01]} 40. Bxe3 {[%clk 0:00:23]}  Rxd2 {[%clk 0:00:01]} 41. Bxd2 {[%clk 0:00:24]}  Bc5 {[%clk 0:00:01]} 42. Kf3 {[%clk 0:00:24]}  Be7 {[%clk 0:00:01]} 43. Ke4 {[%clk 0:00:24]}  Bf8 {[%clk 0:00:01]} 44. Kd5 {[%clk 0:00:25]}  Be7 {[%clk 0:00:02]} 45. Ba5 {[%clk 0:00:23]}  Bh4 {[%clk 0:00:02]} 46. Bc7 {[%clk 0:00:23]}  Bg5 {[%clk 0:00:02]} 47. Bd6 {[%clk 0:00:23]}  Bh4 {[%clk 0:00:02]} 48. Ke4 {[%clk 0:00:23]}  Bg5 {[%clk 0:00:02]} 49. Kf5 {[%clk 0:00:24]}  Bd8 {[%clk 0:00:03]} 1/2-1/2


[Site "https://www.chess.com"]

[Event "Titled Tuesday Blitz November 9 2021"]
[White "Salinas Herrera, Pablo"]
[Black "Yashmetov, Mikhail"]
[WhiteFideId "3407128"]
[BlackFideId "24198900"]
[WhiteElo "2541"]
[BlackElo "2305"]
[Result "0-1"]
[Round "05"]
[TimeControl "180+1"]
[Date "2021.11.09"]
[WhiteClock "0:00:06"]
[BlackClock "0:00:07"]

1. e4 {[%clk 0:03:00]}  c6 {[%clk 0:02:58]} 2. Nf3 {[%clk 0:02:51]}  d5 {[%clk 0:02:58]} 3. Nc3 {[%clk 0:02:52]}  dxe4 {[%clk 0:02:58]} 4. Nxe4 {[%clk 0:02:53]}  Nf6 {[%clk 0:02:58]} 5. Qe2 {[%clk 0:02:54]}  Nxe4 {[%clk 0:02:55]} 6. Qxe4 {[%clk 0:02:55]}  Nd7 {[%clk 0:02:55]} 7. Bc4 {[%clk 0:02:54]}  Nf6 {[%clk 0:02:55]} 8. Ne5 {[%clk 0:02:54]}  e6 {[%clk 0:02:55]} 9. Qe2 {[%clk 0:02:54]}  Bd6 {[%clk 0:02:51]} 10. O-O {[%clk 0:02:52]}  O-O {[%clk 0:02:47]} 11. d4 {[%clk 0:02:51]}  c5 {[%clk 0:02:44]} 12. dxc5 {[%clk 0:02:48]}  Bxc5 {[%clk 0:02:45]} 13. Bg5 {[%clk 0:02:48]}  Be7 {[%clk 0:02:40]} 14. Rad1 {[%clk 0:02:47]}  Qc7 {[%clk 0:02:34]} 15. Rfe1 {[%clk 0:02:44]}  b6 {[%clk 0:02:31]} 16. Bb3 {[%clk 0:02:34]}  a5 {[%clk 0:02:21]} 17. c3 {[%clk 0:02:10]}  Ba6 {[%clk 0:02:17]} 18. Qf3 {[%clk 0:02:09]}  Rad8 {[%clk 0:02:08]} 19. Nc6 {[%clk 0:02:08]}  Bb7 {[%clk 0:01:42]} 20. Nxe7+ {[%clk 0:02:05]}  Qxe7 {[%clk 0:01:42]} 21. Qe3 {[%clk 0:01:49]}  b5 {[%clk 0:01:36]} 22. Qb6 {[%clk 0:01:46]}  a4 {[%clk 0:01:27]} 23. Bc2 {[%clk 0:01:47]}  Rb8 {[%clk 0:01:10]} 24. Qa5 {[%clk 0:01:28]}  Bd5 {[%clk 0:01:00]} 25. a3 {[%clk 0:01:24]}  h6 {[%clk 0:00:55]} 26. Bh4 {[%clk 0:01:22]}  Qb7 {[%clk 0:00:50]} 27. f3 {[%clk 0:01:21]}  Nd7 {[%clk 0:00:46]} 28. Qb4 {[%clk 0:01:17]}  Qc6 {[%clk 0:00:44]} 29. Qg4 {[%clk 0:01:10]}  Kh8 {[%clk 0:00:34]} 30. Bf2 {[%clk 0:01:07]}  f5 {[%clk 0:00:27]} 31. Qh4 {[%clk 0:01:04]}  Kg8 {[%clk 0:00:22]} 32. Bd4 {[%clk 0:00:55]}  Nb6 {[%clk 0:00:20]} 33. Qg3 {[%clk 0:00:53]}  Rb7 {[%clk 0:00:18]} 34. Re2 {[%clk 0:00:42]}  Nc4 {[%clk 0:00:18]} 35. Bb1 {[%clk 0:00:42]}  Na5 {[%clk 0:00:18]} 36. Rde1 {[%clk 0:00:40]}  Qd7 {[%clk 0:00:14]} 37. Re5 {[%clk 0:00:35]}  Nc6 {[%clk 0:00:14]} 38. Bc5 {[%clk 0:00:28]}  Nxe5 {[%clk 0:00:13]} 39. Bxf8 {[%clk 0:00:27]}  Nxf3+ {[%clk 0:00:12]} 40. gxf3 {[%clk 0:00:28]}  Kxf8 {[%clk 0:00:13]} 41. Qf4 {[%clk 0:00:23]}  Qc7 {[%clk 0:00:13]} 42. Qe3 {[%clk 0:00:21]}  Qb6 {[%clk 0:00:13]} 43. Qxb6 {[%clk 0:00:21]}  Rxb6 {[%clk 0:00:14]} 44. Kf2 {[%clk 0:00:22]}  Kf7 {[%clk 0:00:15]} 45. Ke3 {[%clk 0:00:22]}  g5 {[%clk 0:00:15]} 46. Rd1 {[%clk 0:00:22]}  Kf6 {[%clk 0:00:15]} 47. h3 {[%clk 0:00:22]}  h5 {[%clk 0:00:15]} 48. Rd2 {[%clk 0:00:21]}  Rb8 {[%clk 0:00:16]} 49. Rd4 {[%clk 0:00:21]}  Rg8 {[%clk 0:00:15]} 50. Kf2 {[%clk 0:00:21]}  g4 {[%clk 0:00:15]} 51. hxg4 {[%clk 0:00:22]}  hxg4 {[%clk 0:00:15]} 52. fxg4 {[%clk 0:00:22]}  fxg4 {[%clk 0:00:11]} 53. Kg3 {[%clk 0:00:22]}  Bf3 {[%clk 0:00:11]} 54. Bd3 {[%clk 0:00:22]}  e5 {[%clk 0:00:10]} 55. Rd6+ {[%clk 0:00:20]}  Ke7 {[%clk 0:00:08]} 56. Rb6 {[%clk 0:00:21]}  e4 {[%clk 0:00:09]} 57. Bxb5 {[%clk 0:00:21]}  Rh8 {[%clk 0:00:08]} 58. Bc4 {[%clk 0:00:19]}  Rh3+ {[%clk 0:00:06]} 59. Kf4 {[%clk 0:00:19]}  g3 {[%clk 0:00:06]} 60. Rb7+ {[%clk 0:00:13]}  Kd6 {[%clk 0:00:05]} 61. Rg7 {[%clk 0:00:10]}  g2 {[%clk 0:00:05]} 62. Ke3 {[%clk 0:00:08]}  Rh4 {[%clk 0:00:03]} 63. Kf2 {[%clk 0:00:08]}  Rh1 {[%clk 0:00:03]} 64. Bb5 {[%clk 0:00:05]}  Rb1 {[%clk 0:00:04]} 65. Ba6 {[%clk 0:00:02]}  Rxb2+ {[%clk 0:00:03]} 66. Ke3 {[%clk 0:00:03]}  Rb1 {[%clk 0:00:03]} 67. Kf2 {[%clk 0:00:04]}  Ke5 {[%clk 0:00:03]} 68. Bc4 {[%clk 0:00:03]}  Kf4 {[%clk 0:00:04]} 69. Rf7+ {[%clk 0:00:04]}  Kg5 {[%clk 0:00:04]} 70. Rg7+ {[%clk 0:00:04]}  Kf6 {[%clk 0:00:05]} 71. Rg8 {[%clk 0:00:05]}  Rc1 {[%clk 0:00:05]} 72. Bb5 {[%clk 0:00:05]}  Rc2+ {[%clk 0:00:05]} 73. Ke3 {[%clk 0:00:05]}  Rxc3+ {[%clk 0:00:05]} 74. Kf4 {[%clk 0:00:05]}  Rxa3 {[%clk 0:00:06]} 75. Rf8+ {[%clk 0:00:05]}  Ke7 {[%clk 0:00:06]} 76. Rg8 {[%clk 0:00:05]}  Ra1 {[%clk 0:00:06]} 77. Rg7+ {[%clk 0:00:05]}  Kd6 {[%clk 0:00:07]} 78. Rxg2 {[%clk 0:00:06]}  Bxg2 {[%clk 0:00:07]} 0-1


[Site "https://www.chess.com"]

[Event "Titled Tuesday Blitz November 9 2021"]
[White "Suarez Garcia, Carlos"]
[Black "Kalashian, David"]
[WhiteFideId "22230858"]
[BlackFideId "13302418"]
[WhiteElo "2487"]
[BlackElo "2490"]
[Result "1-0"]
[Round "05"]
[TimeControl "180+1"]
[Date "2021.11.09"]
[WhiteClock "0:00:49"]
[BlackClock "0:00:03"]

1. Nf3 {[%clk 0:02:57]}  Nf6 {[%clk 0:02:58]} 2. b3 {[%clk 0:02:57]}  d5 {[%clk 0:02:54]} 3. Bb2 {[%clk 0:02:57]}  e6 {[%clk 0:02:53]} 4. g3 {[%clk 0:02:57]}  c5 {[%clk 0:02:52]} 5. e3 {[%clk 0:02:56]}  Nc6 {[%clk 0:02:52]} 6. Bg2 {[%clk 0:02:56]}  Be7 {[%clk 0:02:52]} 7. O-O {[%clk 0:02:56]}  O-O {[%clk 0:02:53]} 8. c4 {[%clk 0:02:57]}  d4 {[%clk 0:02:52]} 9. exd4 {[%clk 0:02:58]}  cxd4 {[%clk 0:02:53]} 10. Re1 {[%clk 0:02:58]}  Re8 {[%clk 0:02:53]} 11. d3 {[%clk 0:02:58]}  Bf8 {[%clk 0:02:51]} 12. Ba3 {[%clk 0:02:56]}  Bxa3 {[%clk 0:02:45]} 13. Nxa3 {[%clk 0:02:57]}  e5 {[%clk 0:02:46]} 14. Nc2 {[%clk 0:02:57]}  a5 {[%clk 0:02:46]} 15. a3 {[%clk 0:02:58]}  Bf5 {[%clk 0:02:44]} 16. Nh4 {[%clk 0:02:54]}  Bg4 {[%clk 0:02:43]} 17. Qd2 {[%clk 0:02:54]}  h6 {[%clk 0:02:00]} 18. b4 {[%clk 0:02:49]}  axb4 {[%clk 0:01:58]} 19. axb4 {[%clk 0:02:50]}  Rxa1 {[%clk 0:01:58]} 20. Rxa1 {[%clk 0:02:50]}  g5 {[%clk 0:01:53]} 21. Nf3 {[%clk 0:02:44]}  e4 {[%clk 0:01:51]} 22. dxe4 {[%clk 0:02:08]}  Nxe4 {[%clk 0:01:51]} 23. Qd3 {[%clk 0:02:04]}  Nc3 {[%clk 0:01:49]} 24. b5 {[%clk 0:01:46]}  Bxf3 {[%clk 0:01:35]} 25. Qxf3 {[%clk 0:01:43]}  Ne5 {[%clk 0:01:35]} 26. Qxb7 {[%clk 0:01:26]}  d3 {[%clk 0:01:30]} 27. Ne3 {[%clk 0:01:21]}  d2 {[%clk 0:01:30]} 28. Bd5 {[%clk 0:01:19]}  Kg7 {[%clk 0:00:56]} 29. Kg2 {[%clk 0:01:18]}  Re7 {[%clk 0:00:52]} 30. Nf5+ {[%clk 0:01:13]}  Kf6 {[%clk 0:00:39]} 31. Nxe7 {[%clk 0:01:07]}  d1=Q {[%clk 0:00:12]} 32. Ra6+ {[%clk 0:00:52]}  Kg7 {[%clk 0:00:11]} 33. Nf5+ {[%clk 0:00:53]}  Kg8 {[%clk 0:00:08]} 34. Ra8 {[%clk 0:00:53]}  Nxd5 {[%clk 0:00:03]} 35. Rxd8+ {[%clk 0:00:51]}  Kh7 {[%clk 0:00:04]} 36. Qxd5 {[%clk 0:00:49]}  Nd3 {[%clk 0:00:03]} 37. Qxd3 {[%clk 0:00:49]} 1-0


[Site "https://www.chess.com"]

[Event "Titled Tuesday Blitz November 9 2021"]
[White "Svane, Rasmus"]
[Black "Papasimakopoulos, Alexandros"]
[WhiteFideId "4657101"]
[BlackFideId "4244125"]
[WhiteElo "2643"]
[BlackElo "2394"]
[Result "1-0"]
[Round "05"]
[TimeControl "180+1"]
[Date "2021.11.09"]
[WhiteClock "0:00:39"]
[BlackClock "0:00:34"]

1. Nf3 {[%clk 0:03:00]}  f5 {[%clk 0:02:57]} 2. d3 {[%clk 0:03:00]}  d6 {[%clk 0:02:56]} 3. e4 {[%clk 0:03:00]}  g6 {[%clk 0:02:57]} 4. exf5 {[%clk 0:02:59]}  Bxf5 {[%clk 0:02:57]} 5. d4 {[%clk 0:02:59]}  Bg7 {[%clk 0:02:57]} 6. Bd3 {[%clk 0:02:59]}  Qd7 {[%clk 0:02:57]} 7. O-O {[%clk 0:02:56]}  Nf6 {[%clk 0:02:57]} 8. Re1 {[%clk 0:02:56]}  Nc6 {[%clk 0:02:43]} 9. Bb5 {[%clk 0:02:53]}  a6 {[%clk 0:02:31]} 10. Ba4 {[%clk 0:02:52]}  b5 {[%clk 0:02:17]} 11. Bb3 {[%clk 0:02:52]}  d5 {[%clk 0:02:17]} 12. Ne5 {[%clk 0:02:45]}  Nxe5 {[%clk 0:02:07]} 13. dxe5 {[%clk 0:02:46]}  Ng4 {[%clk 0:02:05]} 14. Qxd5 {[%clk 0:01:55]}  Qxd5 {[%clk 0:02:05]} 15. Bxd5 {[%clk 0:01:56]}  Rd8 {[%clk 0:02:05]} 16. Bc6+ {[%clk 0:01:56]}  Kf7 {[%clk 0:02:05]} 17. f4 {[%clk 0:01:42]}  Bxc2 {[%clk 0:01:53]} 18. Nc3 {[%clk 0:01:38]}  h5 {[%clk 0:01:50]} 19. a4 {[%clk 0:01:30]}  bxa4 {[%clk 0:01:42]} 20. Bxa4 {[%clk 0:01:29]}  Bf5 {[%clk 0:01:40]} 21. Bb3+ {[%clk 0:01:27]}  e6 {[%clk 0:01:39]} 22. Rxa6 {[%clk 0:01:27]}  Bf8 {[%clk 0:01:40]} 23. Rc6 {[%clk 0:01:20]}  Rd7 {[%clk 0:01:35]} 24. h3 {[%clk 0:01:19]}  Nh6 {[%clk 0:01:35]} 25. Nb5 {[%clk 0:00:57]}  Bb4 {[%clk 0:01:32]} 26. Rf1 {[%clk 0:00:53]}  Ba5 {[%clk 0:01:24]} 27. Be3 {[%clk 0:00:49]}  Rb8 {[%clk 0:01:21]} 28. Bc4 {[%clk 0:00:46]}  Ng8 {[%clk 0:01:09]} 29. Ra1 {[%clk 0:00:45]}  Ne7 {[%clk 0:01:08]} 30. Ra6 {[%clk 0:00:43]}  Bb6 {[%clk 0:01:06]} 31. Bxb6 {[%clk 0:00:42]}  Rxb6 {[%clk 0:01:02]} 32. Rxb6 {[%clk 0:00:43]}  cxb6 {[%clk 0:01:03]} 33. Nd6+ {[%clk 0:00:43]}  Kg7 {[%clk 0:01:02]} 34. Ra6 {[%clk 0:00:42]}  Nc6 {[%clk 0:00:54]} 35. Rxb6 {[%clk 0:00:40]}  Nd4 {[%clk 0:00:53]} 36. b4 {[%clk 0:00:40]}  Ra7 {[%clk 0:00:52]} 37. Ra6 {[%clk 0:00:39]}  Rc7 {[%clk 0:00:34]} 38. Ne8+ {[%clk 0:00:39]} 1-0


[Site "https://www.chess.com"]

[Event "Titled Tuesday Blitz November 9 2021"]
[White "Sydoryka, Vladyslav"]
[Black "Nagy, Gabor"]
[WhiteFideId "14145928"]
[BlackFideId "737119"]
[WhiteElo "2264"]
[BlackElo "2534"]
[Result "0-1"]
[Round "05"]
[TimeControl "180+1"]
[Date "2021.11.09"]
[WhiteClock "0:01:37"]
[BlackClock "0:01:25"]

1. c4 {[%clk 0:03:00]}  e5 {[%clk 0:02:57]} 2. g3 {[%clk 0:03:00]}  h5 {[%clk 0:02:55]} 3. Nf3 {[%clk 0:02:58]}  e4 {[%clk 0:02:54]} 4. Nh4 {[%clk 0:02:58]}  g5 {[%clk 0:02:51]} 5. Ng2 {[%clk 0:02:55]}  h4 {[%clk 0:02:51]} 6. g4 {[%clk 0:02:53]}  d5 {[%clk 0:02:49]} 7. cxd5 {[%clk 0:02:50]}  Bxg4 {[%clk 0:02:48]} 8. Qa4+ {[%clk 0:02:49]}  Qd7 {[%clk 0:02:43]} 9. Qxe4+ {[%clk 0:02:49]}  Be7 {[%clk 0:02:42]} 10. Ne3 {[%clk 0:02:47]}  Nf6 {[%clk 0:02:41]} 11. Qe5 {[%clk 0:02:41]}  Rg8 {[%clk 0:02:24]} 12. Nc3 {[%clk 0:02:26]}  Na6 {[%clk 0:02:23]} 13. Nxg4 {[%clk 0:02:19]}  Nxg4 {[%clk 0:02:21]} 14. Qe4 {[%clk 0:02:16]}  Nc5 {[%clk 0:02:06]} 15. Qc4 {[%clk 0:02:11]}  Ne5 {[%clk 0:02:02]} 16. Qb5 {[%clk 0:02:10]}  c6 {[%clk 0:01:59]} 17. dxc6 {[%clk 0:02:01]}  bxc6 {[%clk 0:01:57]} 18. Qa5 {[%clk 0:01:57]}  Nc4 {[%clk 0:01:49]} 19. Qb4 {[%clk 0:01:51]}  Nd3+ {[%clk 0:01:48]} 20. exd3 {[%clk 0:01:52]}  Bxb4 {[%clk 0:01:48]} 21. dxc4 {[%clk 0:01:52]}  Bxc3 {[%clk 0:01:47]} 22. bxc3 {[%clk 0:01:51]}  Qe6+ {[%clk 0:01:41]} 23. Be2 {[%clk 0:01:50]}  O-O-O {[%clk 0:01:41]} 24. d4 {[%clk 0:01:48]}  f5 {[%clk 0:01:36]} 25. Kd1 {[%clk 0:01:47]}  Qe4 {[%clk 0:01:31]} 26. Re1 {[%clk 0:01:45]}  Rxd4+ {[%clk 0:01:29]} 27. Bd2 {[%clk 0:01:39]}  Rxd2+ {[%clk 0:01:28]} 28. Kxd2 {[%clk 0:01:39]}  Rd8+ {[%clk 0:01:29]} 29. Kc1 {[%clk 0:01:39]}  Qf4+ {[%clk 0:01:27]} 30. Kb2 {[%clk 0:01:37]}  Rd2+ {[%clk 0:01:25]} 31. Kb3 {[%clk 0:01:37]}  Qb8+ {[%clk 0:01:25]} 0-1


[Site "https://www.chess.com"]

[Event "Titled Tuesday Blitz November 9 2021"]
[White "Talcrifice"]
[Black "Visakh N R"]
[BlackFideId "25012223"]
[WhiteElo "2648"]
[BlackElo "2454"]
[Result "0-1"]
[Round "05"]
[TimeControl "180+1"]
[Date "2021.11.09"]
[WhiteClock "0:00:47"]
[BlackClock "0:01:02"]

1. d4 {[%clk 0:03:00]}  Nf6 {[%clk 0:02:59]} 2. c4 {[%clk 0:03:00]}  e6 {[%clk 0:02:59]} 3. Nf3 {[%clk 0:03:00]}  Bb4+ {[%clk 0:02:59]} 4. Bd2 {[%clk 0:03:00]}  c5 {[%clk 0:02:59]} 5. dxc5 {[%clk 0:02:57]}  Bxc5 {[%clk 0:02:58]} 6. Nc3 {[%clk 0:02:58]}  O-O {[%clk 0:02:57]} 7. Bf4 {[%clk 0:02:56]}  d5 {[%clk 0:02:53]} 8. e3 {[%clk 0:02:52]}  Nc6 {[%clk 0:02:52]} 9. cxd5 {[%clk 0:02:50]}  Nxd5 {[%clk 0:02:50]} 10. Nxd5 {[%clk 0:02:50]}  exd5 {[%clk 0:02:51]} 11. Bd3 {[%clk 0:02:47]}  d4 {[%clk 0:02:51]} 12. e4 {[%clk 0:02:34]}  Qf6 {[%clk 0:02:43]} 13. Bg3 {[%clk 0:02:27]}  Bb4+ {[%clk 0:02:38]} 14. Kf1 {[%clk 0:02:27]}  Bg4 {[%clk 0:02:37]} 15. h3 {[%clk 0:02:17]}  Bh5 {[%clk 0:02:36]} 16. Kg1 {[%clk 0:02:17]}  Bd6 {[%clk 0:02:28]} 17. Bxd6 {[%clk 0:02:16]}  Qxd6 {[%clk 0:02:29]} 18. g4 {[%clk 0:02:14]}  Bg6 {[%clk 0:02:28]} 19. Kg2 {[%clk 0:02:13]}  h5 {[%clk 0:02:21]} 20. Nh4 {[%clk 0:02:09]}  Bh7 {[%clk 0:02:17]} 21. Nf5 {[%clk 0:02:07]}  Qf4 {[%clk 0:02:14]} 22. Qf3 {[%clk 0:02:00]}  Qg5 {[%clk 0:02:09]} 23. Qg3 {[%clk 0:01:56]}  Rfe8 {[%clk 0:01:49]} 24. gxh5 {[%clk 0:01:50]}  Qxg3+ {[%clk 0:01:48]} 25. Kxg3 {[%clk 0:01:48]}  Nb4 {[%clk 0:01:39]} 26. Bc4 {[%clk 0:01:37]}  Bxf5 {[%clk 0:01:21]} 27. exf5 {[%clk 0:01:36]}  Rac8 {[%clk 0:01:22]} 28. Rac1 {[%clk 0:01:32]}  d3 {[%clk 0:01:22]} 29. a3 {[%clk 0:01:28]}  d2 {[%clk 0:01:22]} 30. Rcd1 {[%clk 0:01:16]}  Rxc4 {[%clk 0:01:21]} 31. axb4 {[%clk 0:01:16]}  Rd8 {[%clk 0:01:21]} 32. Kf3 {[%clk 0:01:12]}  Rxb4 {[%clk 0:01:21]} 33. Ke2 {[%clk 0:01:13]}  Re4+ {[%clk 0:01:18]} 34. Kf3 {[%clk 0:01:13]}  Re5 {[%clk 0:01:19]} 35. Kf4 {[%clk 0:01:11]}  Rb5 {[%clk 0:01:19]} 36. Rhg1 {[%clk 0:01:09]}  Kh7 {[%clk 0:01:18]} 37. Rg3 {[%clk 0:00:59]}  Rxb2 {[%clk 0:01:16]} 38. Re3 {[%clk 0:00:58]}  Kh6 {[%clk 0:01:13]} 39. Re7 {[%clk 0:00:57]}  f6 {[%clk 0:01:11]} 40. Rg1 {[%clk 0:00:53]}  Rb4+ {[%clk 0:01:11]} 41. Ke3 {[%clk 0:00:52]}  Rb3+ {[%clk 0:01:10]} 42. Ke4 {[%clk 0:00:51]}  d1=Q {[%clk 0:01:04]} 43. Rexg7 {[%clk 0:00:47]}  Qf3# {[%clk 0:01:02]} 0-1


[Site "https://www.chess.com"]